Cogmind - Beta 14 @@@ ROGUE MODE // 2025.05.02 @ 20:14:08 Player: Teshkan Result: Destroyed by S-27 Virus with Autogun Performance ------------- Evolutions (3) 1500 Regions Visited (8) 1600 Robots Destroyed (28) 140 Value Destroyed (1150) 1150 Prototype IDs (2) 40 Alien Tech Used (0) 0 Bonus (330) 330 TOTAL SCORE: 4760 Bonus ------- Entered Garrisons 400 Friendly Fire -70 Cogmind --------- Core Integrity 0/700 Matter 98/300 Energy 1/100 System Corruption 0% Temperature Cool (12) Movement Flying (29) Location -7/Garrison Parts ------- > --- POWER (3) -------- (None) > --- PROPULSION (4) --- Cooled VTOL Module Cooled VTOL Module Cooled VTOL Module > --- UTILITY (3) ------ (None) > --- WEAPON (3) ------- (None) > --- INVENTORY (5) ---- Medium Reactive Plating Peak State ------------ > --- POWER ------------ (None) > --- PROPULSION ------- Cooled VTOL Module Cooled VTOL Module Cooled VTOL Module > --- UTILITY ---------- Medium Reactive Plating > --- WEAPON ----------- (None) > --- INVENTORY -------- (None) [Rating: 19] Favorites ----------- Power Ion Engine Engine Ion Engine Propulsion Light Treads Treads Light Treads Wheel Compact Wheel Flight Unit Cooled VTOL Module Utility Small Storage Unit Device Sensor Array Storage Small Storage Unit Protection Scrap Shield Weapon Grenade Launcher Energy Gun Small Laser Ballistic Gun Subdweller Machine Gun Ballistic Cannon Bore Cannon Launcher Grenade Launcher Build | -11 -10 -10 -10 -8 -7 -7 -7 -7 ------- Run | Yrd Mat Min Sub Mat Fac Gar Fac Gar Slots Evolved 6 | . . . . 4 2 . . . Power 2 | . . . . 1 1 . . . Propulsion 2 | . . . . 1 1 . . . Utility 1 | . . . . 1 . . . . Weapon 1 | . . . . 1 . . . . Parts Attached 46 | 6 2 3 15 11 5 . . 4 Power 3 | 1 . . . 2 . . . . Engine 3 | 1 . . . 2 . . . . Core . | . . . . . . . . . Reactor . | . . . . . . . . . Propulsion 18 | 2 . . 4 5 4 . . 3 Treads 4 | 2 . . 2 . . . . . Leg . | . . . . . . . . . Wheel 9 | . . . 2 5 2 . . . Hover . | . . . . . . . . . Flight 5 | . . . . . 2 . . 3 Utility 5 | 1 1 . . 2 . . . 1 Device 1 | . 1 . . . . . . . Storage 2 | 1 . . . 1 . . . . Processor . | . . . . . . . . . Hackware . | . . . . . . . . . Protection 2 | . . . . 1 . . . 1 Artifact . | . . . . . . . . . Weapon 20 | 2 1 3 11 2 1 . . . Energy Gun 4 | 2 . 1 1 . . . . . Energy Cannon . | . . . . . . . . . Ballistic Gun 4 | . . . 3 . 1 . . . Ballistic Cannon 3 | . . 1 2 . . . . . Launcher 9 | . 1 1 5 2 . . . . Special Weapon . | . . . . . . . . . Impact Weapon . | . . . . . . . . . Slashing Weapon . | . . . . . . . . . Piercing Weapon . | . . . . . . . . . Special Melee Weapon . | . . . . . . . . . Unidentified Prototypes 2 | . . . . . 2 . . . Parts Lost 16 | . . . 2 12 . 1 . 1 Power 2 | . . . . 2 . . . . Propulsion 5 | . . . . 4 . . . 1 Utility 4 | . . . 1 2 . 1 . . Weapon 5 | . . . 1 4 . . . . Highest Loss Streak 6 | . . . 2 6 . 1 . 1 To Critical Strikes . | . . . . . . . . . Average Slot Usage (%) 85 | . 92 100 94 71 30 26 23 17 Engine 12 | . 14 14 14 11 . . . . Treads 17 | . 28 28 19 2 . . . . Wheel 7 | . . . 8 19 8 . . . Flight 1 | . . . . . 6 15 15 13 Device 7 | . 6 14 9 . . . . . Storage 13 | . 14 14 14 14 7 3 . . Energy Gun 2 | . 17 6 . . . . . . Ballistic Gun 3 | . . . 3 8 7 7 7 2 Ballistic Cannon 8 | . . 7 12 2 . . . . Launcher 9 | . 10 14 10 9 . . . . Peak Build Rating 19 | 6 7 11 16 17 16 16 15 19 Average Rating 11 | 4 6 9 12 11 11 15 15 10 On Entrance 9 | . 6 7 11 12 1 16 15 15 Naked Turns 11 | . . . . . . . . 11 Heaviest Build 44 | 13 15 23 23 44 5 5 3 3 Greatest Support 48 | 40 40 40 40 48 32 10 10 15 Greatest Overweight (x) 3 | . . . 1 3 . . . . Average Overweight (x) . | . . . . . . . . . Largest Inventory Capacity 8 | 8 8 8 8 8 5 5 5 5 Average Capacity 7 | 6 8 8 8 7 5 5 5 5 Most Carried 8 | 3 5 8 8 8 5 4 4 4 Average Carried 6 | 1 3 7 7 3 2 4 4 3 Final Capacity 8 | 8 8 8 8 5 5 5 5 5 Final Carried 8 | 2 5 8 8 3 4 4 4 1 Class Distribution -------------------- 88% | Mutant 6% | Sprinter 5% | Bomber Dominant Class ---------------- Mutant | -10/Materials Mutant | -10/Mines Mutant | -10/Subcaves Mutant | -8/Materials Mutant | -7/Factory Sprinter | -7/Garrison Sprinter | -7/Factory Mutant | -7/Garrison Resources | -11 -10 -10 -10 -8 -7 -7 -7 -7 ----------- Run | Yrd Mat Min Sub Mat Fac Gar Fac Gar Matter Collected 1392 | 233 52 99 593 288 . . . 127 Remotely . | . . . . . . . . . Salvage Created 747 | . 56 129 196 366 . . . . Parts 54 | . 1 10 18 25 . . . . Haulers Intercepted 1 | . . . . 1 . . . . Recyclers Shooed 2 | . . . . 2 . . . . Parts Field Recycled . | . . . . . . . . . Retrieved Matter . | . . . . . . . . . Parts Self-Destructed 7 | . . . 7 . . . . . Prevented . | . . . . . . . . . Kills | -11 -10 -10 -10 -8 -7 -7 -7 -7 ------- Run | Yrd Mat Min Sub Mat Fac Gar Fac Gar Combat Hostiles Destroyed 23 | . 2 5 7 9 . . . . Guns 4 | . 1 . . 3 . . . . Cannons 5 | . . . 4 1 . . . . AOE 14 | . 1 5 3 5 . . . . Classes Destroyed 8 | . 1 1 1 5 . . . . Builder 2 | . . 1 . 1 . . . . Hauler 1 | . . . . 1 . . . . Mechanic 1 | . . . . 1 . . . . Watcher 1 | . . . . 1 . . . . Grunt 15 | . 2 5 2 6 . . . . Duelist 1 | . . . . 1 . . . . Hunter 2 | . . . . 2 . . . . Subdweller 5 | . . . 5 . . . . . Best Kill Streak 4 | . 2 3 2 4 . . . . Combat Bots Only 3 | . 2 3 2 3 . . . . Max Kills in Single Turn 2 | . 2 2 1 2 . . . . Gunslinging . | . . . . . . . . . Exploded 2 | . 1 2 1 2 . . . . Melee . | . . . . . . . . . Uniques/NPCs Destroyed . | . . . . . . . . . Combat | -11 -10 -10 -10 -8 -7 -7 -7 -7 -------- Run | Yrd Mat Min Sub Mat Fac Gar Fac Gar Hostile Shots Fired 281 | . 3 8 27 88 . 40 . 115 Missed 123 | . . 2 12 25 . 24 . 60 Damage Taken 2935 | . 46 133 350 1458 . 191 . 757 Core 1240 | . . 82 22 430 . 92 . 614 Absorbed by Shields 19 | . . . . . . . . 19 Core Remaining (%) 59 | 100 . . 58 21 . . . . Volleys Fired 82 | . 2 8 36 33 2 1 . . Largest 3 | . 2 2 2 3 1 1 . . Hottest 117 | . 70 87 107 117 25 25 . . Shots Fired 161 | . 4 16 70 68 2 1 . . Gun 53 | . 2 2 15 31 2 1 . . Cannon 52 | . . 6 32 14 . . . . Launcher 56 | . 2 8 23 23 . . . . Special . | . . . . . . . . . Kinetic 95 | . . 6 41 45 2 1 . . Thermal 4 | . 2 2 . . . . . . Explosive 56 | . 2 8 23 23 . . . . Electromagnetic 6 | . . . 6 . . . . . Robot Hit Streak 9 | . 1 9 6 5 1 . . . Robot Miss Streak 7 | . 1 3 2 7 1 . . . Penetration Max 1 | . . . 1 1 . . . . Secondary Targets . | . . . . . . . . . Shots Hit Robots 67 | . 2 12 27 25 1 . . . Core Hits 68 | . 4 15 16 32 . . . 1 Critical Kills 4 | . . . 3 1 . . . . Critical Parts Destroyed 4 | . . 1 1 2 . . . . Critical Strikes 13 | . . 1 9 3 . . . . Destroy 13 | . . 1 9 3 . . . . Melee Attacks . | . . . . . . . . . Impact . | . . . . . . . . . Slashing . | . . . . . . . . . Piercing . | . . . . . . . . . Sneak Attacks . | . . . . . . . . . Combat Hostiles . | . . . . . . . . . Follow-up Attacks . | . . . . . . . . . Damage Inflicted 2715 | . 156 433 828 1282 15 . . 1 Guns 356 | . 10 23 62 246 15 . . . Cannons 380 | . . 37 271 72 . . . . Explosions 1978 | . 146 373 495 964 . . . . Melee . | . . . . . . . . . Ramming 1 | . . . . . . . . 1 Kinetic 641 | . . 37 271 318 15 . . . Thermal 33 | . 10 23 . . . . . . Explosive 1978 | . 146 373 495 964 . . . . Electromagnetic 62 | . . . 62 . . . . . Impact . | . . . . . . . . . Slashing . | . . . . . . . . . Piercing . | . . . . . . . . . Highest Corruption 7 | . . . . 7 . . . . Average Corruption 7 | . . . . 7 . . . . Corruption Purged . | . . . . . . . . . Corruption Blocked . | . . . . . . . . . Effects 2 | . . . . 2 . . . . Matter Fused 1 | . . . . 1 . . . . Energy Discharges 1 | . . . . 1 . . . . Overload Shots . | . . . . . . . . . Overflow Damage 13 | . . . 4 9 . . . . Projectiles . | . . . . . . . . . Explosions 13 | . . . 4 9 . . . . Melee . | . . . . . . . . . Knockbacks 4 | . . 1 3 . . . . . Impact . | . . . . . . . . . Kinetic 4 | . . 1 3 . . . . . Secondary . | . . . . . . . . . Self-Inflicted Damage 114 | . . 36 34 44 . . . . Shots 6 | . . 1 2 3 . . . . Rammed 1 | . . . . . . . . 1 Targets Rammed 1 | . . . . . . . . 1 Kicked . | . . . . . . . . . Crushed . | . . . . . . . . . Highest Temperature 234 | . 42 234 8 126 . . . . Average Temperature 51 | . 24 100 2 35 . . . . Received Heat Transfer 651 | . 24 72 78 342 . 42 . 93 Siege Activations . | . . . . . . . . . Robots Corrupted . | . . . . . . . . . Combat Hostiles . | . . . . . . . . . Parts Fried . | . . . . . . . . . Impact Corruptions . | . . . . . . . . . Robots Melted . | . . . . . . . . . Combat Hostiles . | . . . . . . . . . Parts Melted . | . . . . . . . . . Heat Transferred 75 | . 25 50 . . . . . . Parts Sabotaged . | . . . . . . . . . Parts Stolen . | . . . . . . . . . Parts Stripped . | . . . . . . . . . Power Chain Reactions . | . . . . . . . . . Alert | -11 -10 -10 -10 -8 -7 -7 -7 -7 ------- Run | Yrd Mat Min Sub Mat Fac Gar Fac Gar Peak Influence 414 | . 73 101 . 414 169 214 131 296 Initial 165 | . . 28 . 26 165 118 112 91 Average 117 | . 45 83 . 185 165 138 121 184 Maximum Alert Level 2 | . . . . 2 . 1 . 1 Low Security (%) 86 | 100 100 100 . 60 100 90 100 51 Level 1 12 | . . . . 35 . 9 . 48 Level 2 1 | . . . . 3 . . . . Level 3 . | . . . . . . . . . Level 4 . | . . . . . . . . . Level 5 . | . . . . . . . . . High Security . | . . . . . . . . . Max Security . | . . . . . . . . . Squads Dispatched 2 | . . . . 2 . . . . Investigation 1 | . . . . 1 . . . . Extermination . | . . . . . . . . . Reinforcement 1 | . . . . 1 . . . . Assault . | . . . . . . . . . Garrison . | . . . . . . . . . Intercept . | . . . . . . . . . Searches Triggered . | . . . . . . . . . Construction Impeded 1 | . . . . 1 . . . . Haulers Reinforced . | . . . . . . . . . Active Scanning Responses . | . . . . . . . . . Cargo Convoy Interrupts . | . . . . . . . . . Stealth | -11 -10 -10 -10 -8 -7 -7 -7 -7 --------- Run | Yrd Mat Min Sub Mat Fac Gar Fac Gar Distress Signals . | . . . . . . . . . Communications Jammed . | . . . . . . . . . Distress Signals . | . . . . . . . . . Times Spotted 83 | . 3 2 16 18 . 16 1 27 Peak Tracking Total 18 | . 2 2 6 8 . 14 1 18 Tactical Retreats 3 | . . . . . . 1 . 2 Traps | -11 -10 -10 -10 -8 -7 -7 -7 -7 ------- Run | Yrd Mat Min Sub Mat Fac Gar Fac Gar Traps Triggered 3 | . . . . 1 . . . 2 Indirectly . | . . . . . . . . . Trap Hack Attempts . | . . . . . . . . . Triggered . | . . . . . . . . . Disarmed . | . . . . . . . . . Reprogrammed . | . . . . . . . . . Reused . | . . . . . . . . . Traps Extracted . | . . . . . . . . . Installed . | . . . . . . . . . Triggered . | . . . . . . . . . Machines | -11 -10 -10 -10 -8 -7 -7 -7 -7 ---------- Run | Yrd Mat Min Sub Mat Fac Gar Fac Gar Machines Disabled 9 | . 1 . . 8 . . . . Max in Single Turn 2 | . 1 . . 2 . . . . Garrison Relay 1 | . . . . . . 1 . . Machines Repaired . | . . . . . . . . . Machines Dismantled . | . . . . . . . . . Machines Sabotaged . | . . . . . . . . . Overloaded Fab Kills . | . . . . . . . . . Hacking | -11 -10 -10 -10 -8 -7 -7 -7 -7 --------- Run | Yrd Mat Min Sub Mat Fac Gar Fac Gar Machines Accessed 6 | . 1 . . 1 1 1 1 1 Terminals 4 | . 1 . . 1 . 1 . 1 Fabricators . | . . . . . . . . . Repair Stations . | . . . . . . . . . Recycling Units . | . . . . . . . . . Scanalyzers . | . . . . . . . . . Garrison Access 2 | . . . . . 1 . 1 . Total Hacks 16 | . 4 . . 6 2 1 2 1 Successful 13 | . 4 . . 5 1 1 1 1 Failed 3 | . . . . 1 1 . 1 . Catastrophic . | . . . . . . . . . Database Lockouts . | . . . . . . . . . Manual . | . . . . . . . . . Terminals 12 | . 4 . . 6 . 1 . 1 Fabricators . | . . . . . . . . . Repair Stations . | . . . . . . . . . Recycling Units . | . . . . . . . . . Scanalyzers . | . . . . . . . . . Garrison Access 4 | . . . . . 2 . 2 . Terminal Hacks 11 | . 4 . . 5 . 1 . 1 Record 7 | . 3 . . 4 . . . . Open Door 1 | . . . . . . . . 1 Alert Level 2 | . 1 . . 1 . . . . Security Stations 1 | . . . . . . 1 . . Fabricator Hacks . | . . . . . . . . . Repair Station Hacks . | . . . . . . . . . Recycling Unit Hacks . | . . . . . . . . . Scanalyzer . | . . . . . . . . . Garrison Access Hacks 2 | . . . . . 1 . 1 . Unlock Access 2 | . . . . . 1 . 1 . Unauthorized Hacks . | . . . . . . . . . Terminals . | . . . . . . . . . Fabricators . | . . . . . . . . . Repair Stations . | . . . . . . . . . Recycling Units . | . . . . . . . . . Scanalyzers . | . . . . . . . . . Garrison Access . | . . . . . . . . . Data Cores Recovered . | . . . . . . . . . Used . | . . . . . . . . . Hacking Detections 2 | . . . . . 1 1 . . Full Trace Events . | . . . . . . . . . Feedback Events . | . . . . . . . . . Feedback Blocked . | . . . . . . . . . Robot Schematics Acquired . | . . . . . . . . . Robots Built . | . . . . . . . . . Authchips . | . . . . . . . . . Time . | . . . . . . . . . Total Robot Build Rating . | . . . . . . . . . Part Schematics Acquired . | . . . . . . . . . Parts Built . | . . . . . . . . . Authchips . | . . . . . . . . . Time . | . . . . . . . . . Total Part Build Rating . | . . . . . . . . . Parts Repaired . | . . . . . . . . . Time . | . . . . . . . . . Parts Recycled . | . . . . . . . . . Recycled Matter . | . . . . . . . . . Retrieved Matter . | . . . . . . . . . Retrieved Components . | . . . . . . . . . Parts Scanalyzed . | . . . . . . . . . Part Schematics Acquired . | . . . . . . . . . Parts Damaged . | . . . . . . . . . Bothacking | -11 -10 -10 -10 -8 -7 -7 -7 -7 ------------ Run | Yrd Mat Min Sub Mat Fac Gar Fac Gar Used RIF Installer . | . . . . . . . . . Robots Hacked . | . . . . . . . . . Non-combat . | . . . . . . . . . Combat . | . . . . . . . . . Robot Hacks Applied . | . . . . . . . . . Relay Couplers Released 5 | . . . . . . 5 . . Machine Destruction 5 | . . . . . . 5 . . Fabnet Peak Effective % . | . . . . . . . . . Robots Rewired . | . . . . . . . . . Allies Hacked . | . . . . . . . . . Hacks Repelled . | . . . . . . . . . Allies | -11 -10 -10 -10 -8 -7 -7 -7 -7 -------- Run | Yrd Mat Min Sub Mat Fac Gar Fac Gar Total Allies 2 | . . . . . . . . 2 Largest Group 2 | . . . . . . . . 2 Highest-Rated Group 51 | . . . . . . . . 51 Highest-Rated Ally 31 | . . . . . . . . 31 Total Orders . | . . . . . . . . . Ally Attacks 4 | . . . . . . . . 4 Total Damage 80 | . . . . . . . . 80 Kills . | . . . . . . . . . Allies Corrupted . | . . . . . . . . . Allies Melted . | . . . . . . . . . Intel | -11 -10 -10 -10 -8 -7 -7 -7 -7 ------- Run | Yrd Mat Min Sub Mat Fac Gar Fac Gar Robot Analysis Total . | . . . . . . . . . Derelict Logs Recovered 1 | . . 1 . . . . . . Drone Launches . | . . . . . . . . . Drone Recoveries . | . . . . . . . . . Exploration | -11 -10 -10 -10 -8 -7 -7 -7 -7 ------------- Run | Yrd Mat Min Sub Mat Fac Gar Fac Gar Turns Passed 2521 | 66 144 514 1185 360 79 75 21 77 Spaces Moved 1911 | 42 83 295 717 208 117 229 63 157 Core 36 | 13 . . . 16 . . . 7 Treads 887 | 29 83 295 467 13 . . . . Legs . | . . . . . . . . . Wheels 464 | . . . 250 179 35 . . . Hover . | . . . . . . . . . Flight 524 | . . . . . 82 229 63 150 Fastest Speed 29 | 50 160 160 110 50 32 32 32 29 Average Speed 111 | 125 160 160 142 112 52 32 32 33 Slowest Speed 240 | 160 160 160 160 240 100 32 32 50 Overloaded Moves . | . . . . . . . . . Propulsion Burnouts . | . . . . . . . . . Robots Hopped 13 | . . . . . 1 3 . 9 Cave-ins Triggered 1 | . . . . 1 . . . . Exploration Rate (%) 25 | 4 23 70 34 28 5 31 3 31 Regions Visited 8 Branch Regions 2 Pre-discovered Areas 1 | . . . 1 . . . . . Known Exits Taken 2 | . . . . . 1 . 1 . Unknown Exits Taken 5 | 1 1 1 1 1 . . . . Scrap Searched 8 | . . 1 7 . . . . . Spaces Dug 36 | . . . 36 . . . . . Terrain Destroyed 331 | . 4 57 169 101 . . . . Melee . | . . . . . . . . . Projectile 35 | . . 4 16 15 . . . . AOE 296 | . 4 53 153 86 . . . . Terrain Rammed . | . . . . . . . . . Walls Destroyed . | . . . . . . . . . Machines Disabled . | . . . . . . . . . Actions | -11 -10 -10 -10 -8 -7 -7 -7 -7 --------- Run | Yrd Mat Min Sub Mat Fac Gar Fac Gar Total 2138 | 55 90 321 804 273 132 226 63 174 Wait 53 | . . 9 27 8 . . 1 8 Move 1880 | 41 82 294 716 207 114 222 62 142 Hop 10 | . . . . . 1 3 . 6 Pick Up 38 | 8 4 5 5 9 7 . . . Fast Attach . | . . . . . . . . . Attach 23 | 6 1 . 1 8 3 . . 4 Detach 1 | . . . . . . . . 1 Swap 23 | . 1 3 14 3 2 . . . Drop 15 | . . 2 5 5 3 . . . Fire 82 | . 2 8 36 33 2 1 . . Melee . | . . . . . . . . . Ram 1 | . . . . . . . . 1 Kick . | . . . . . . . . . Crush . | . . . . . . . . . Escape Stasis 12 | . . . . . . . . 12 Rewire . | . . . . . . . . . Trap . | . . . . . . . . . Miscellaneous . | . . . . . . . . . Route ------- -11/Scrapyard -10/Materials -10/Mines -10/Subcaves -8/Materials -7/Factory (discovered 2 exits: [*Low] / Gar) -7/Garrison -7/Factory -7/Garrison History --------- Turn | Location | Event 5 | -11/Scrapyard | Discovered new exit (range 16) 67 | -11/Scrapyard | Entered Materials 171 | -10/Materials | Discovered new exit (range 7) 211 | -10/Materials | Entered Mines 232 | -10/Mines | Assisted by bots powering up and referring to "LRC-V3" 289 | -10/Mines | YI-UF0 nonchalantly dropped a Grenade Launcher on the ground 301 | -10/Mines | Build established: Mutant 448 | -10/Mines | A weapon hastily lodged in a ceiling crevice suddenly fell to the ground 489 | -10/Mines | Learned Materials stockpile data 722 | -10/Mines | Discovered new exit (range 3) 725 | -10/Mines | Entered Subcaves 753 | -10/Subcaves | Ambushed by Subdweller buried in earth 815 | -10/Subcaves | Learned location of Zion (-7) 815 | -10/Subcaves | Met a Zionite searching for "candidates" 1330 | -10/Subcaves | Ambushed by Subdweller buried in earth 1433 | -10/Subcaves | Disturbed a concealed Subdweller 1460 | -10/Subcaves | Disturbed a concealed Subdweller 1460 | -10/Subcaves | Disturbed a concealed Subdweller 1493 | -10/Subcaves | Shifting Twisted Machinery released Shrapnel Trap 1499 | -10/Subcaves | Ambushed by swarm of Subdwellers 1614 | -10/Subcaves | Shifting Twisted Machinery released Sub. Power Source 1850 | -10/Subcaves | A swath of the cavern ceiling suddenly collapsed 1890 | -10/Subcaves | Discovered new exit (range 10) 1910 | -10/Subcaves | Entered Materials 1910 | -8/Materials | Evolved 4 slots: Power x1, Propulsion x1, Utility x1, Weapon x1 2172 | -8/Materials | Crushed by falling debris 2203 | -8/Materials | Lost 4 parts (1p2n1w) 2247 | -8/Materials | Discovered new exit (range 16) 2257 | -8/Materials | Core integrity fell below 50% 2270 | -8/Materials | Entered Factory 2270 | -7/Factory | Evolved 2 slots: Power x1, Propulsion x1 2300 | -7/Factory | Lost 6 parts (1p2n1u2w) 2330 | -7/Factory | Discovered new exit (range 7) 2347 | -7/Factory | Identified exit to Garrison 2349 | -7/Factory | Entered Garrison 2381 | -7/Garrison | Triggered checkpoint 2387 | -7/Garrison | Learned Factory security intel 2392 | -7/Garrison | Garrison Relay disabled 2393 | -7/Garrison | Triggered checkpoint 2417 | -7/Garrison | Triggered checkpoint 2421 | -7/Garrison | Discovered new exit (range 10) 2424 | -7/Garrison | Entered Factory 2444 | -7/Factory | Identified exit to Garrison 2445 | -7/Factory | Entered Garrison 2473 | -7/Garrison | Triggered checkpoint 2485 | -7/Garrison | Triggered checkpoint 2494 | -7/Garrison | Rescued a captive Derelict 2496 | -7/Garrison | Core integrity fell below 50% 2496 | -7/Garrison | Rescued a captive Derelict 2512 | -7/Garrison | Core integrity fell below 20% 2522 | -7/Garrison | Destroyed by S-27 Virus with Autogun Last Messages --------------- 02494_ OB-BKE(b): "WARLORD FOREVER!" Move into an ally to swap places with them. 02495_ Cld. VTOL Module destroyed. 02496_ A2-VDO(g): "WARLORD FOREVER!" 02499_ OB-BKE(b) destroyed. 02501_ A2-VDO(g) Carbon-fiber Leg severed. 02502_ A2-VDO(g) destroyed. 02503_ Acquired 60 matter. 02503_ Penetrated by Slug. 02504_ Slammed into Y-54 Guardian. 02504_ Penetrated by Slug. 02504_ Y-54 Guardian destroyed. 02505_ Acquired 67 matter. [Achievement: Cya!] 02511_ Penetrated by Slug. 02522_ Triggered Stasis Trap. 02522_ A bubble of rippling energy engulfs the area. 02522_ Field strength at 85. 02522_ Field strength at 70. Map ----- +----------------------------------------------------+ | ?????????????????????????????????????????????????? | | ?????????????????????????????????????????????????? | | ?????????????????????????????????????????????????? | | ?????????????????????????????????????????????????? | | ?????????????????????????????????????????????????? | | ?????????????????????????????????????????????????? | | ?????????????????????????????????????????????????? | | ?????????????????????????????????????????????????? | | ?????????????????????????????????????????????????? | | ?????????????????????????????????????????????????? | | ?????????????????????????????????????????????????? | | ?????????? ??????????????????????????????????????? | | ????###### ""########???????????????????????????? | | ??### ???????????????????????????? | | ??? ????????????????????????????? | | ???? ?????????????????????????????? | | ????# ## #? #?????????????????????????????? | | ???## ## ## ###???????????????????????????? | | ???? #???????????????????????????? | | ????" #???????????????????????????? | | ????" #???????????????????????????? | | ????" ????????????????????????????? | | ????# ## ## #?????????????????????????????? | | ##### ## ## ##########????????????????????? | | s g #????????????????????? | | s @ #????????????????????? | | ##### =s ####### #????????????????????? | | ????## ## "## ##?????# #????????????????????? | | ?????# ## "%## #??????# #????????????????????? | | ?????# ######## #??????# #????????#####???????? | | ?????# #??????# #??????# #????????# #???????? | | ?????# #??????# #??????# ########## ######### | | ?????# #??????# #??????# # / % | | ###### #??????# #??????# ##### ######### #####= | | #??????# ######## #???# #???????# #"#?#= | | #??????# ##### #???????# "#?## | | ####### #??????# #???????# "#??# | | ??????? #??????##T######## #######???????# "#??# | | ??????? #???????###??????# #?????????????# #"#??? | | ??????? ?????????????????# #?????????????#####??? | | ??????? ?????????????????# ????????????????????? | | ??????? ?????????????????# # ???????????????????? | | ?????????????????????????# # #??????????????????? | | ?????????????????????????# #?#??????????????????? | | ?????????????????????????# ????????????????????? | | ?????????????????????????# ????????????????????? | | ?????????????????????????####????????????????????? | | ?????????????????????????????????????????????????? | | ?????????????????????????????????????????????????? | | ?????????????????????????????????????????????????? | +----------------------------------------------------+ Best States ------------- Heat Dissipation 34 Energy Generation 15 Energy Capacity 400 Matter Stores 300 Matter Capacity 400 Sight Range 16 Robot Scan Range 14 Terrain Scan Density 10 Armor Coverage 800 Resistance: KI 30 Evasion (%) 64 Recoil Reduction 2 Item Schematics ----------------- None Robot Schematics ------------------ None Fabricated ------------ Nothing Alien Tech Used ----------------- None Achievements -------------- Cya! Dramatic Entrance Oops Please Form A Line Challenges ------------ None Game ------ Seed TeslaDeliveryPit Manual? 0 Play Time 00:42:40 Cumulative 3.2 hours Start 2025.05.02 @ 19:32:42 End 2025.05.02 @ 20:14:08 Sessions 1 Manual Loads 0 Difficulty Rogue Special Mode None Game No. 5 Rogue 5 Adventurer 0 Explorer 0 Win Type - Total 0 Types 0/0/0/0/0/0/0/0/0 Lore% 5 Gallery% 6 Achievement% 8 Wizard Run 0 Options --------- Layout 1 ASCII 0 Keyboard 0 Movement Numpad Keybinds 0 Fullscreen 1 Font 32/SmallcapsGlow Map View 50x35 Zoom Use 0% Tactical HUD 1 Map Filters NONE Filters NONE Steam 1 RUN: a1b07ca9-ab94-4aa4-8104-c96a91d86178